bitfinex-derivatives/quotes_BTCF0:USTF0_20241130
["timestamp","ask_amount","ask_price","bid_price","bid_amount"]
[1733004185741,0.414423,96801.0,96800.0,0.00210477]
[1733004186248,0.051635,96780.0,96779.0,0.02066315]
[1733004186456,0.051635,96780.0,96774.0,0.0306]
[1733004186655,0.051637,96775.0,96774.0,0.0306]
[1733004187341,0.051637,96775.0,96774.0,0.03072399]
[1733004187749,0.051637,96775.0,96774.0,0.15968399]
[1733004188049,0.052637,96775.0,96774.0,0.15968399]
[1733004188250,0.053637,96775.0,96774.0,0.15968399]
[1733004190049,0.053637,96775.0,96774.0,0.15964399]
[1733004190755,0.052637,96775.0,96774.0,0.03072399]
[1733004190967,0.053637,96775.0,96774.0,0.03072399]
[1733004194944,0.00013116,96780.0,96774.0,0.03072399]
[1733004195146,0.051633,96783.0,96780.0,0.051634]
[1733004195350,0.00155041,96795.0,96782.0,0.3608]
[1733004195550,0.00155041,96795.0,96785.0,0.06029622]
[1733004196155,9.565e-05,96786.0,96785.0,0.06029622]
[1733004196357,0.051632,96785.0,96783.0,0.12892]
[1733004197463,0.051632,96785.0,96783.0,0.180553]
[1733004198760,0.052632,96785.0,96783.0,0.181553]
[1733004201458,0.001,96785.0,96783.0,0.181553]
[1733004206766,0.001,96785.0,96783.0,0.001]
[1733004207066,0.001,96785.0,96784.0,0.12892]
[1733004207067,0.052632,96785.0,96784.0,0.12892]
[1733004208467,0.052632,96785.0,96783.0,0.180553]
[1733004208468,0.051632,96785.0,96783.0,0.180553]
[1733004208664,0.052632,96785.0,96783.0,0.180553]
[1733004209571,0.052632,96785.0,96783.0,0.051633]
[1733004209771,0.052632,96785.0,96783.0,0.180553]
[1733004210968,0.052632,96785.0,96783.0,0.12892]
[1733004213273,0.051633,96783.0,96782.0,0.01235868]
[1733004213468,0.051633,96783.0,96774.0,0.36092399]
[1733004213668,0.051637,96776.0,96775.0,0.12892]
[1733004214872,0.052637,96776.0,96775.0,0.12892]
[1733004215272,0.053637,96776.0,96775.0,0.12892]
[1733004217081,0.053637,96776.0,96774.0,0.14147511]
[1733004218286,0.052637,96776.0,96774.0,0.14147511]
[1733004218588,0.053637,96776.0,96774.0,0.14147511]
[1733004227487,0.053637,96776.0,96774.0,0.19311211]
[1733004228083,0.04273144,96776.0,96774.0,0.19311211]
[1733004228890,0.04273144,96776.0,96775.0,0.3608]
[1733004228891,0.002,96776.0,96775.0,0.3608]
[1733004229896,0.001,96776.0,96775.0,0.3608]
[1733004230093,0.002,96776.0,96775.0,0.412437]
[1733004232499,0.002,96776.0,96775.0,0.42535424]
[1733004233096,0.002,96776.0,96775.0,0.412437]
[1733004233697,0.002,96776.0,96775.0,0.42535396]
[1733004234297,0.002,96776.0,96775.0,0.67325231]
[1733004234696,0.002,96776.0,96775.0,0.42535396]
[1733004235797,9.565e-05,96786.0,96785.0,0.051632]
[1733004236097,9.565e-05,96786.0,96785.0,0.55422896]
[1733004236897,9.565e-05,96786.0,96785.0,0.55422718]
[1733004237097,0.00109565,96786.0,96785.0,0.55422718]
[1733004237594,0.00109565,96786.0,96785.0,0.541312]
[1733004238402,0.05162,96807.0,96806.0,0.051621]
[1733004238604,0.051619,96810.0,96809.0,0.051619]
[1733004239299,0.0001007,96810.0,96804.0,0.3608]
[1733004239500,0.0001007,96810.0,96809.0,0.051619]
[1733004240099,0.0021007,96810.0,96809.0,0.051619]
[1733004240297,0.0041007,96810.0,96809.0,0.051619]
[1733004244402,0.0041007,96810.0,96809.0,0.06404266]
[1733004245004,0.0041007,96810.0,96809.0,0.19288266]
[1733004248507,0.0041007,96810.0,96809.0,0.06404266]
[1733004248706,0.0041007,96810.0,96809.0,0.19288266]
[1733004251308,0.0031007,96810.0,96809.0,0.19488266]
[1733004252112,0.0011007,96810.0,96809.0,0.19588266]
[1733004253701,0.0011007,96810.0,96809.0,0.21654171]
[1733004254108,0.0301,96824.0,96809.0,0.21654171]
[1733004254410,0.0301,96824.0,96823.0,0.051612]
[1733004254612,0.0301,96824.0,96823.0,0.180412]
[1733004255415,0.0636,96835.0,96827.0,0.05161]
[1733004255416,8.598e-05,96828.0,96827.0,0.05161]
[1733004256714,0.00408598,96828.0,96827.0,0.05161]
[1733004257013,0.00408598,96828.0,96827.0,0.18037]
[1733004257211,0.00708598,96828.0,96827.0,0.18037]
[1733004258714,0.00408598,96828.0,96827.0,0.18037]
[1733004258917,0.00408598,96828.0,96827.0,0.18137]
[1733004259213,0.00108598,96828.0,96827.0,0.18337]
[1733004263417,0.00108598,96828.0,96827.0,0.18346969]
[1733004268110,0.00108598,96828.0,96827.0,0.36895237]
[1733004268413,0.00108598,96828.0,96827.0,0.18346969]
[1733004269721,0.0307,96843.0,96827.0,0.18346969]
[1733004269921,0.0307,96843.0,96842.0,0.412402]
[1733004270223,0.0307,96843.0,96842.0,0.541162]
[1733004270813,0.0317,96843.0,96842.0,0.541162]
[1733004272422,0.0317,96843.0,96842.0,0.72645269]
[1733004272613,0.0317,96843.0,96842.0,0.541162]
[1733004272815,0.0317,96843.0,96842.0,0.72645269]
[1733004273924,0.0327,96843.0,96842.0,0.72645269]
[1733004274116,0.0327,96843.0,96842.0,0.541162]
[1733004279727,0.002,96843.0,96842.0,0.541162]
[1733004279934,0.00013109,96848.0,96847.0,0.051599]
[1733004280124,1e-08,96848.0,96847.0,0.051599]
[1733004281022,0.00300001,96848.0,96847.0,0.051599]
[1733004281223,0.00600001,96848.0,96847.0,0.051599]
[1733004282533,0.00300001,96848.0,96847.0,0.052599]
[1733004283129,1e-08,96848.0,96847.0,0.052599]
[1733004283431,1e-08,96848.0,96847.0,0.056599]
[1733004284122,1e-08,96848.0,96847.0,0.06950503]
[1733004284324,1e-08,96848.0,96847.0,0.056599]
[1733004286638,1e-08,96848.0,96847.0,0.06950468]
[1733004286825,1e-08,96848.0,96847.0,0.056599]
[1733004287231,0.0333,96863.0,96847.0,0.01790553]
[1733004287431,0.0333,96863.0,96862.0,0.412391]
[1733004287628,0.0333,96863.0,96862.0,0.541511]
[1733004288633,0.02189391,96863.0,96862.0,0.541511]
[1733004289628,0.02489391,96863.0,96862.0,0.541511]
[1733004290429,0.007,96863.0,96862.0,0.541511]
[1733004290636,0.00010286,96868.0,96867.0,0.051588]
[1733004291932,0.00410286,96868.0,96867.0,0.23686356]
[1733004292131,0.01010286,96868.0,96867.0,0.23686356]
[1733004292440,0.0332,96882.0,96881.0,0.051581]
[1733004292634,0.0332,96882.0,96881.0,0.541501]
[1733004293737,0.0422,96882.0,96881.0,0.542501]
[1733004294144,0.0492,96882.0,96881.0,0.543501]
[1733004295945,0.0492,96882.0,96881.0,0.414381]
[1733004296242,0.0492,96882.0,96881.0,0.543461]
[1733004296435,0.0472,96882.0,96881.0,0.543461]
[1733004296636,0.0382,96882.0,96881.0,0.542461]
[1733004296945,0.0462,96882.0,96881.0,0.543461]
[1733004297145,0.0462,96882.0,96881.0,0.182661]
[1733004297535,0.0462,96882.0,96881.0,0.19505551]
[1733004300244,0.0462,96882.0,96881.0,0.06597551]
[1733004306744,0.0462,96882.0,96881.0,0.01439451]
[1733004307150,0.06494541,96882.0,96881.0,0.01439451]
[1733004307640,0.06494541,96882.0,96881.0,0.002]
[1733004313751,0.051588,96867.0,96866.0,0.3608]
[1733004313951,0.051588,96867.0,96866.0,0.37325159]
[1733004315062,0.052588,96867.0,96866.0,0.37325159]
[1733004315750,0.053588,96867.0,96866.0,0.37325159]
[1733004318352,0.053588,96867.0,96866.0,0.01245159]
[1733004318556,0.002,96867.0,96863.0,0.3608]
[1733004318762,0.05159,96864.0,96863.0,0.3608]
[1733004320957,0.002,96867.0,96863.0,0.3608]
[1733004320958,0.051589,96866.0,96863.0,0.3608]
[1733004321261,0.05159,96864.0,96863.0,0.37332132]
[1733004322366,0.05259,96864.0,96863.0,0.37332132]
[1733004323661,0.05259,96864.0,96863.0,0.01252132]
[1733004323861,0.05259,96864.0,96855.0,0.12868]
[1733004324061,0.051594,96856.0,96855.0,0.12868]
[1733004324957,0.051594,96856.0,96855.0,0.13268]
[1733004325557,0.051594,96856.0,96855.0,0.14479267]
[1733004325759,0.051594,96856.0,96855.0,0.14679267]
[1733004327057,0.051594,96856.0,96855.0,0.01611267]
[1733004327264,0.051594,96856.0,96855.0,0.01811267]
[1733004328467,0.051594,96856.0,96855.0,0.01411267]
[1733004328663,0.051594,96856.0,96855.0,0.01611267]
[1733004329061,0.051594,96856.0,96855.0,0.01311267]
[1733004329267,0.051594,96856.0,96855.0,0.01511267]
[1733004329766,0.051594,96856.0,96855.0,0.01411267]
[1733004329960,0.051594,96856.0,96855.0,0.01511267]
[1733004330568,0.051594,96856.0,96855.0,0.01411267]
[1733004331356,0.051594,96856.0,96855.0,0.01211267]
[1733004331561,0.051594,96856.0,96855.0,0.002]
[1733004335964,0.051594,96856.0,96855.0,0.053595]
[1733004336276,0.01950746,96865.0,96857.0,0.051593]
[1733004336573,0.051592,96861.0,96857.0,0.051593]
[1733004337668,0.051592,96861.0,96857.0,0.052593]
[1733004337876,0.051592,96860.0,96857.0,0.052593]
[1733004338067,0.051589,96866.0,96857.0,0.052593]
[1733004338269,0.051592,96860.0,96857.0,0.052593]
[1733004338570,0.051593,96859.0,96857.0,0.051593]
[1733004338770,0.051591,96861.0,96857.0,0.054593]
[1733004338973,0.051592,96860.0,96857.0,0.054593]
[1733004339170,0.051592,96860.0,96858.0,0.051593]
[1733004339768,0.051592,96860.0,96858.0,0.412393]
[1733004340877,0.051592,96860.0,96858.0,0.413393]
[1733004341386,0.051592,96860.0,96858.0,0.415393]
[1733004342770,0.051588,96868.0,96858.0,0.415393]
[1733004343077,0.051593,96859.0,96858.0,0.3638]
[1733004345473,0.051593,96859.0,96858.0,0.415393]
[1733004345874,0.051593,96859.0,96858.0,0.414393]
[1733004346078,0.051593,96859.0,96858.0,0.415393]
[1733004348382,0.051593,96859.0,96858.0,0.054593]
[1733004361195,0.051593,96859.0,96858.0,0.053593]
[1733004361488,0.051593,96859.0,96858.0,0.054593]
[1733004366293,0.051593,96859.0,96858.0,0.003]
[1733004368493,0.051593,96859.0,96858.0,0.054593]
[1733004368993,0.0633,96867.0,96858.0,0.003]
[1733004369189,0.051591,96862.0,96860.0,0.051592]
[1733004370694,0.051592,96860.0,96858.0,0.003]
[1733004370901,0.051592,96860.0,96858.0,0.001]
[1733004371094,0.051593,96859.0,96858.0,0.001]
[1733004371789,0.051593,96859.0,96854.0,0.051595]
[1733004371995,0.051593,96859.0,96858.0,0.001]
[1733004372491,0.051593,96859.0,96854.0,0.051595]
[1733004372695,0.051593,96859.0,96858.0,0.003]
[1733004374099,0.051593,96859.0,96858.0,0.3638]
[1733004374695,0.051593,96859.0,96858.0,0.002]
[1733004374900,0.051593,96859.0,96858.0,0.3628]
[1733004375504,0.051593,96859.0,96858.0,0.3638]
[1733004377099,0.051593,96859.0,96858.0,0.415393]
[1733004377403,0.051593,96859.0,96858.0,0.054593]
[1733004377592,0.051593,96859.0,96858.0,0.415393]
[1733004381401,0.0633,96867.0,96858.0,0.415393]
[1733004381402,0.0633,96867.0,96858.0,0.3638]
[1733004381605,0.0633,96867.0,96859.0,0.051592]
[1733004381805,0.051591,96863.0,96859.0,0.051592]
[1733004382304,0.051586,96872.0,96858.0,0.3618]
[1733004382501,0.051586,96872.0,96870.0,0.3608]
[1733004382701,0.051586,96872.0,96871.0,0.051586]
[1733004385203,0.058586,96872.0,96871.0,0.051586]
[1733004386104,0.058586,96872.0,96871.0,0.412386]
[1733004391311,0.058586,96872.0,96871.0,0.051586]
[1733004391505,0.058586,96872.0,96871.0,0.412386]
[1733004394818,0.058586,96872.0,96871.0,0.051586]
[1733004395017,0.058586,96872.0,96871.0,0.412386]
[1733004395209,0.007,96872.0,96871.0,0.412386]
[1733004396819,0.007,96872.0,96871.0,0.051586]
[1733004397122,0.007,96872.0,96871.0,0.412386]
[1733004398917,0.058586,96872.0,96871.0,0.412386]
[1733004399227,0.058586,96872.0,96871.0,0.051586]
[1733004400117,0.054586,96872.0,96871.0,0.051586]
[1733004400317,0.054586,96872.0,96871.0,0.056586]
[1733004400519,0.051586,96872.0,96871.0,0.056586]
[1733004400714,0.051586,96872.0,96871.0,0.059586]
[1733004401518,0.051586,96872.0,96871.0,0.420386]
[1733004402323,0.051586,96872.0,96871.0,0.412386]
[1733004402527,0.051586,96872.0,96871.0,0.419386]
[1733004403127,0.051586,96872.0,96871.0,0.417386]
[1733004403323,0.051586,96872.0,96871.0,0.058586]
[1733004403530,0.051586,96872.0,96871.0,0.419386]
[1733004403923,0.051586,96872.0,96871.0,0.417386]
[1733004404227,0.051586,96872.0,96871.0,0.419386]
[1733004408619,0.051586,96872.0,96871.0,0.414386]
[1733004408823,0.051586,96872.0,96871.0,0.419386]
[1733004409221,0.051586,96872.0,96871.0,0.414386]
[1733004409422,0.051586,96872.0,96871.0,0.419386]
[1733004416524,0.0311,96881.0,96875.0,0.051584]
[1733004416525,0.051584,96876.0,96875.0,0.051584]
[1733004417735,0.051584,96876.0,96875.0,0.052584]
[1733004419154,0.051584,96876.0,96875.0,0.055584]
[1733004424335,7.901e-05,96885.0,96884.0,0.051579]
[1733004424530,7.901e-05,96885.0,96884.0,0.412379]
[1733004425742,0.00207901,96885.0,96884.0,0.412379]
[1733004428445,0.00207901,96885.0,96884.0,0.42486071]
[1733004432954,0.05365801,96885.0,96884.0,0.42486071]
[1733004433243,0.05365801,96885.0,96884.0,0.01248171]
[1733004433439,0.00207901,96885.0,96881.0,0.12852]
[1733004433642,0.00207901,96885.0,96881.0,0.05158]
[1733004433643,0.05158,96882.0,96881.0,0.05158]
[1733004434143,0.05158,96882.0,96881.0,0.06356142]
[1733004435644,0.05158,96882.0,96881.0,0.06456142]
[1733004436541,0.05158,96882.0,96881.0,0.01298142]
[1733004439656,0.41238,96882.0,96881.0,0.01298142]
[1733004442243,0.41238,96882.0,96881.0,0.001]
[1733004442442,0.41238,96882.0,96865.0,0.3608]
[1733004442443,0.051588,96867.0,96865.0,0.3608]
[1733004442645,0.0323,96866.0,96865.0,0.3608]
[1733004442848,0.0648,96866.0,96865.0,0.3608]
[1733004443540,0.0648,96866.0,96865.0,0.37275704]
[1733004443945,0.0648,96866.0,96865.0,0.37675704]
[1733004444145,0.0648,96866.0,96865.0,0.01595704]
[1733004444350,0.0648,96866.0,96865.0,0.02395704]
[1733004444351,0.0658,96866.0,96865.0,0.02395704]
[1733004461649,0.0335,96866.0,96865.0,0.02395704]
[1733004464069,0.001,96866.0,96865.0,0.02395704]
[1733004470571,0.052589,96866.0,96865.0,0.02395704]
[1733004485273,0.052589,96866.0,96865.0,0.012]
[1733004487169,0.052589,96866.0,96865.0,0.004]
[1733004487372,0.051601,96843.0,96841.0,0.031]
[1733004487574,0.051601,96843.0,96834.0,0.36148]
[1733004487781,0.051605,96835.0,96834.0,0.37341425]
[1733004487975,0.051605,96835.0,96834.0,0.37273425]
[1733004489982,0.052605,96835.0,96834.0,0.37773425]
[1733004490184,0.053605,96835.0,96834.0,0.38273425]
[1733004494192,0.053605,96835.0,96834.0,0.02193425]
[1733004495688,0.052605,96835.0,96834.0,0.01693425]
[1733004495888,0.053605,96835.0,96834.0,0.02093425]
[1733004496279,0.053605,96835.0,96834.0,0.01993425]
[1733004496280,0.052605,96835.0,96834.0,0.01993425]
[1733004496488,0.051605,96835.0,96834.0,0.01593425]
[1733004496681,0.051605,96835.0,96834.0,0.01793425]
[1733004515207,0.051603,96839.0,96838.0,0.051603]
[1733004515512,0.051603,96839.0,96838.0,0.412403]
[1733004516403,0.051603,96839.0,96838.0,0.415403]
[1733004521612,0.051603,96839.0,96838.0,0.054603]
[1733004521807,0.09119622,96850.0,96843.0,0.051601]
[1733004521808,0.051601,96844.0,96843.0,0.051601]
[1733004524606,0.001,96844.0,96843.0,0.051601]
[1733004531612,0.033,96844.0,96843.0,0.051601]
[1733004535419,0.033,96844.0,96843.0,0.412401]
[1733004536130,0.001,96844.0,96843.0,0.412401]
[1733004543929,0.001,96844.0,96843.0,0.3608]
[1733004544928,0.052601,96844.0,96843.0,0.3608]
[1733004545934,0.051602,96842.0,96841.0,0.12824]
[1733004546128,0.051602,96842.0,96841.0,0.48904]
[1733004547745,0.051602,96842.0,96841.0,0.49004]
[1733004551635,0.051602,96842.0,96841.0,0.3618]
[1733004560350,0.051602,96842.0,96841.0,0.001]
[1733004607284,0.14664417,96842.0,96841.0,0.001]
[1733004610599,0.051602,96842.0,96841.0,0.001]
[1733004611489,0.14664191,96842.0,96841.0,0.001]
[1733004612493,0.051602,96842.0,96841.0,0.001]
[1733004616598,0.14664215,96842.0,96841.0,0.001]
[1733004618906,0.051602,96842.0,96841.0,0.001]
[1733004628001,0.14664459,96842.0,96841.0,0.001]
[1733004631603,0.50744459,96842.0,96841.0,0.001]
[1733004632315,0.50744465,96842.0,96841.0,0.001]
[1733004633612,0.412402,96842.0,96841.0,0.001]
[1733004634607,0.50744484,96842.0,96841.0,0.001]
[1733004635606,0.412402,96842.0,96841.0,0.001]
[1733004638508,0.50744509,96842.0,96841.0,0.001]
[1733004639900,0.50744509,96842.0,96834.0,0.01193425]
[1733004640106,0.051608,96830.0,96829.0,0.128]
[1733004640505,0.051609,96828.0,96822.0,0.0316]
[1733004640705,0.051609,96828.0,96824.0,0.128]
[1733004642009,0.051609,96828.0,96827.0,0.00409969]
[1733004643411,0.052609,96828.0,96827.0,0.00909969]
[1733004643606,0.052609,96828.0,96827.0,0.02147174]
[1733004643809,0.052609,96828.0,96827.0,0.00909969]
[1733004648214,0.052609,96828.0,96827.0,0.02131443]
[1733004651613,0.052609,96828.0,96827.0,0.00909969]
[1733004651813,0.05269344,96828.0,96827.0,0.00909969]
[1733004654815,0.14775157,96828.0,96827.0,0.00909969]
[1733004655420,0.05269344,96828.0,96827.0,0.00909969]
[1733004657625,0.14775575,96828.0,96827.0,0.00909969]
[1733004658227,0.05269344,96828.0,96827.0,0.00909969]
[1733004661826,0.14775575,96828.0,96827.0,0.00909969]
[1733004665425,0.09614197,96828.0,96827.0,0.00909969]
[1733004665627,0.00108444,96828.0,96827.0,0.00909969]
[1733004667327,0.00108444,96828.0,96827.0,0.04189969]
[1733004668825,0.00108444,96828.0,96827.0,0.40269969]
[1733004678940,0.00108444,96828.0,96827.0,0.40592713]
[1733004680331,0.00108444,96828.0,96827.0,0.40592707]
[1733004680633,0.00108444,96828.0,96827.0,0.40269969]
[1733004681841,0.051599,96848.0,96827.0,0.70311569]
[1733004682038,0.051599,96848.0,96846.0,0.051599]
[1733004682342,0.051599,96848.0,96847.0,0.031]
[1733004683432,0.052599,96848.0,96847.0,0.031]
[1733004684043,0.053599,96848.0,96847.0,0.031]
[1733004684337,0.002,96848.0,96847.0,0.031]
[1733004684743,0.004,96848.0,96847.0,0.031]
[1733004685748,0.004,96848.0,96847.0,0.04334473]
[1733004686639,0.004,96848.0,96847.0,0.40414473]
[1733004693548,0.004,96848.0,96847.0,0.04334473]
[1733004694965,0.004,96848.0,96847.0,0.40414473]
[1733004696273,0.004,96848.0,96847.0,0.37314473]
[1733004697156,0.004,96848.0,96847.0,0.37637157]
[1733004698661,0.004,96848.0,96847.0,0.37314473]
[1733004698968,0.004,96848.0,96847.0,0.37637156]
[1733004701761,0.004,96848.0,96847.0,0.37314473]
[1733004710481,0.004,96848.0,96847.0,0.73394473]
[1733004718678,0.0001159,96850.0,96848.0,0.051598]
[1733004719878,0.0011159,96850.0,96849.0,0.12772]
[1733004721691,0.0011159,96850.0,96849.0,0.13572]
[1733004722981,0.0011159,96850.0,96849.0,0.187318]
[1733004733397,0.0011159,96850.0,96849.0,0.548118]
[1733004736295,0.0527129,96850.0,96849.0,0.008]
[1733004736489,0.051598,96848.0,96847.0,0.01234473]
[1733004736685,0.0631,96849.0,96838.0,0.12768]
[1733004736888,0.0631,96849.0,96836.0,0.051604]
[1733004737086,0.051602,96842.0,96836.0,0.051604]
[1733004737389,0.051602,96841.0,96836.0,0.051604]
[1733004737687,0.051606,96834.0,96831.0,0.12836]
[1733004737888,0.0306,96833.0,96831.0,0.01231859]
[1733004738097,0.051607,96832.0,96830.0,0.00068]
[1733004738691,0.0306,96833.0,96826.0,0.05161]
[1733004738992,0.051608,96830.0,96826.0,0.05161]
[1733004739797,0.0333,96829.0,96826.0,0.05161]
[1733004739997,0.0304,96828.0,96826.0,0.05161]
[1733004740986,0.0304,96828.0,96827.0,0.01205118]
[1733004741203,0.0314,96828.0,96827.0,0.01205118]
[1733004757208,0.001,96828.0,96827.0,0.01205118]
[1733004767613,0.0960515,96828.0,96827.0,0.01205118]
[1733004768421,0.09605123,96828.0,96827.0,0.01205118]
[1733004768810,0.09605123,96828.0,96827.0,9.969e-05]
[1733004769712,0.14766023,96828.0,96827.0,9.969e-05]
[1733004772321,0.052609,96828.0,96827.0,9.969e-05]
[1733004776123,0.14766329,96828.0,96827.0,9.969e-05]
[1733004778024,0.14766414,96828.0,96827.0,9.969e-05]
[1733004778723,0.1476643,96828.0,96827.0,9.969e-05]
[1733004779623,0.052609,96828.0,96827.0,9.969e-05]
[1733004781830,0.413409,96828.0,96827.0,9.969e-05]
[1733004782031,0.50847156,96828.0,96827.0,9.969e-05]
[1733004782225,0.413409,96828.0,96827.0,9.969e-05]
[1733004784535,0.50846665,96828.0,96827.0,9.969e-05]
[1733004785330,0.63614665,96828.0,96827.0,9.969e-05]
[1733004787926,0.94525579,96828.0,96827.0,9.969e-05]
[1733004788321,0.50846665,96828.0,96827.0,9.969e-05]
[1733004788526,0.63614665,96828.0,96827.0,9.969e-05]
[1733004790027,0.94530904,96828.0,96827.0,9.969e-05]
[1733004790232,0.63614665,96828.0,96827.0,9.969e-05]
[1733004790429,0.94530904,96828.0,96827.0,9.969e-05]
[1733004790630,0.63614665,96828.0,96827.0,9.969e-05]
[1733004790930,0.541089,96828.0,96827.0,9.969e-05]
[1733004793937,0.63614472,96828.0,96827.0,9.969e-05]
[1733004794236,0.541089,96828.0,96827.0,9.969e-05]
[1733004794437,0.63614492,96828.0,96827.0,9.969e-05]
[1733004796536,0.541089,96828.0,96827.0,9.969e-05]
[1733004796737,0.180289,96828.0,96827.0,9.969e-05]
[1733004797238,0.27534235,96828.0,96827.0,9.969e-05]
[1733004798332,0.180289,96828.0,96827.0,9.969e-05]
[1733004798733,0.27533988,96828.0,96827.0,9.969e-05]
[1733004800047,0.14765988,96828.0,96827.0,9.969e-05]
[1733004800343,0.052609,96828.0,96827.0,9.969e-05]
[1733004801139,0.14765266,96828.0,96827.0,9.969e-05]
[1733004801346,0.052609,96828.0,96827.0,9.969e-05]
[1733004802641,0.14765614,96828.0,96827.0,9.969e-05]
[1733004802853,0.1476558,96828.0,96827.0,9.969e-05]
[1733004803048,0.052609,96828.0,96827.0,9.969e-05]
[1733004803939,0.001,96828.0,96827.0,0.05170969]
[1733004806246,0.001,96828.0,96827.0,0.05493752]
[1733004806636,0.001,96828.0,96827.0,0.05170969]
[1733004814548,0.001,96828.0,96827.0,0.0549374]
[1733004814949,0.001,96828.0,96827.0,0.05170969]
[1733004815244,0.0517139,96850.0,96848.0,0.051598]
[1733004815544,0.0001159,96850.0,96848.0,0.051598]
[1733004817147,0.0031159,96850.0,96848.0,0.051598]
[1733004817353,0.0051159,96850.0,96848.0,0.051598]
[1733004823054,0.0051159,96850.0,96848.0,0.06356846]
[1733004825153,0.0051159,96850.0,96848.0,0.051598]
[1733004825366,0.0051159,96850.0,96846.0,0.3608]
[1733004825548,0.051601,96843.0,96842.0,0.1276]
[1733004825949,0.051601,96843.0,96841.0,0.051602]
[1733004828047,0.051601,96843.0,96841.0,0.052602]
[1733004838052,0.051601,96843.0,96841.0,0.001]
[1733004844052,0.051601,96843.0,96841.0,0.052602]
[1733004844256,0.0950323,96842.0,96841.0,0.052602]
[1733004844655,0.09503204,96842.0,96841.0,0.052602]
[1733004845364,0.051601,96843.0,96841.0,0.052602]
[1733004846156,0.051601,96843.0,96842.0,0.00322744]
[1733004846564,0.051601,96843.0,96841.0,0.052602]
[1733004847066,0.051601,96843.0,96841.0,0.051602]
[1733004847257,0.051601,96843.0,96841.0,0.052602]
[1733004854265,0.09503494,96842.0,96841.0,0.052602]
[1733004854770,0.051601,96843.0,96841.0,0.052602]
[1733004855270,0.051601,96843.0,96841.0,0.051602]
[1733004855572,0.051601,96843.0,96841.0,0.052602]
[1733004856171,0.051601,96843.0,96842.0,0.00322743]
[1733004858871,0.051601,96843.0,96842.0,0.05482942]
[1733004859969,0.14663232,96843.0,96842.0,0.051602]
[1733004860866,0.051601,96843.0,96842.0,0.051602]
[1733004861569,0.14663223,96843.0,96842.0,0.051602]
[1733004863368,0.14663146,96843.0,96842.0,0.051602]
[1733004863771,0.0001159,96850.0,96846.0,0.051598]
[1733004863772,0.051599,96847.0,96846.0,0.051598]
[1733004864068,0.051599,96847.0,96846.0,0.05482538]
[1733004865173,0.053599,96847.0,96846.0,0.05482538]
[1733004866077,0.053599,96847.0,96846.0,0.051598]
[1733004866278,0.053599,96847.0,96846.0,0.05482536]
[1733004866665,0.055599,96847.0,96846.0,0.05482536]
[1733004871482,0.055599,96847.0,96846.0,0.051598]
[1733004872480,0.055599,96847.0,96846.0,0.06391321]
[1733004876578,0.15062835,96847.0,96846.0,0.06391321]
[1733004878978,0.055599,96847.0,96846.0,0.06391321]
[1733004879383,0.004,96847.0,96846.0,0.06391321]
[1733004889090,0.004,96847.0,96846.0,0.06714054]
[1733004889881,0.004,96847.0,96846.0,0.0671405]
[1733004891288,0.09902878,96847.0,96846.0,0.0671405]
[1733004891879,0.09902878,96847.0,96846.0,0.06391321]
[1733004898508,0.004,96847.0,96846.0,0.06391321]
[1733004898995,0.004,96847.0,96846.0,0.06714048]
[1733004900404,0.055599,96847.0,96846.0,0.01554248]
[1733004900794,0.004,96847.0,96841.0,0.3608]
[1733004900984,0.051602,96842.0,96841.0,0.3608]
[1733004901189,0.051602,96842.0,96841.0,0.37286277]
[1733004902788,0.051602,96842.0,96841.0,0.37386277]
[1733004906794,0.146635,96842.0,96841.0,0.37386277]
[1733004906993,0.051602,96842.0,96841.0,0.37386277]
[1733004908000,0.051602,96842.0,96841.0,0.01306277]
[1733004908502,0.051602,96842.0,96841.0,0.001]
[1733004909698,0.051602,96842.0,96827.0,9.969e-05]
[1733004909699,0.051605,96836.0,96835.0,0.01201357]
[1733004909899,0.051609,96828.0,96827.0,9.969e-05]
[1733004910995,0.412409,96828.0,96827.0,9.969e-05]
[1733004911703,0.412409,96828.0,96827.0,0.01248287]
[1733004912195,0.412409,96828.0,96827.0,0.01348287]
[1733004913990,0.413409,96828.0,96827.0,0.01348287]
[1733004921892,0.413409,96828.0,96827.0,0.00109969]
[1733004929202,0.50845591,96828.0,96827.0,0.00109969]
[1733004929401,0.413409,96828.0,96827.0,0.00109969]
[1733004929908,0.50845109,96828.0,96827.0,0.00109969]
[1733004930206,0.14765109,96828.0,96827.0,0.00109969]
[1733004930410,0.413409,96828.0,96827.0,0.00109969]
[1733004931500,0.50845591,96828.0,96827.0,0.00109969]
[1733004932809,0.413409,96828.0,96827.0,0.00209969]
[1733004933013,0.543689,96828.0,96827.0,0.00209969]
[1733004933213,0.543689,96828.0,96806.0,0.13028]
[1733004933214,0.49208,96828.0,96806.0,0.13028]
[1733004933509,0.05162,96807.0,96806.0,0.13028]
[1733004934812,0.05162,96807.0,96806.0,0.001]
[1733004936004,0.05262,96807.0,96806.0,0.001]
[1733004936413,0.05262,96807.0,96805.0,0.0781202]
[1733004936609,0.05362,96807.0,96805.0,0.0781202]
[1733004948414,0.05262,96807.0,96805.0,0.0781202]
[1733004948628,0.05362,96807.0,96805.0,0.0781202]
[1733004949324,0.05262,96807.0,96805.0,0.0781202]
[1733004949623,0.05362,96807.0,96805.0,0.0781202]
[1733004950123,0.05362,96807.0,96805.0,0.0449202]
[1733004950426,0.05262,96807.0,96805.0,0.0449202]
[1733004950626,0.05362,96807.0,96805.0,0.0449202]
[1733004952323,0.05262,96807.0,96805.0,0.0449202]
[1733004954325,0.05262,96807.0,96805.0,0.0125202]
[1733004954533,0.05262,96807.0,96802.0,9.633e-05]
[1733004954730,0.051622,96803.0,96802.0,9.633e-05]
[1733004956628,0.052622,96803.0,96802.0,9.633e-05]
[1733004956927,0.053622,96803.0,96802.0,9.633e-05]
[1733004957533,0.053622,96803.0,96802.0,0.01238072]
[1733004957730,0.053622,96803.0,96802.0,9.633e-05]
[1733004961236,0.053622,96803.0,96802.0,0.01209018]